Cogmind - Beta 9 @@@ ROGUE MODE // 2019.10.27 @ 20:24:48 Player: Gammalost Result: Self-destructed Performance ------------- Evolutions (1) 500 Regions Visited (2) 400 Robots Destroyed (20) 100 Value Destroyed (570) 570 Prototype IDs (0) 0 Alien Tech Used (0) 0 Bonus (0) 0 TOTAL SCORE: 1570 Bonus ------- None Cogmind --------- Core Integrity 351/400 Matter 290/300 Energy 250/250 System Corruption 0% Temperature Cool (1) Location -9/Materials Parts ------- Power (1) Ion Engine Propulsion (2) Aluminum Leg Aluminum Leg Utility (4) Large Storage Unit Weapon (2) Grenade Launcher Inventory (10) Ion Engine Light Ion Engine Aluminum Leg Aluminum Leg Aluminum Leg Small Storage Unit EM Pulse Gun Small Laser Particle Gun Light Assault Rifle Peak State ------------ Power Ion Engine Propulsion Aluminum Leg Aluminum Leg Utility Heat Sink Large Storage Unit Weapon Light Assault Rifle Light Assault Rifle Inventory Light Ion Engine Light Ion Engine Light Treads Light Treads Wheel Compact Wheel Small Storage Unit Small Matter Pod Medium Laser Grenade Launcher [Rating: 8] Favorites ----------- Power Ion Engine Engine Ion Engine Propulsion Aluminum Leg Leg Aluminum Leg Utility Large Storage Unit Device Heat Sink Storage Large Storage Unit Weapon Light Assault Rifle Energy Gun Medium Laser Ballistic Gun Light Assault Rifle Launcher Grenade Launcher Build | -11 -10 -9 ------- Run | Scr Mat Mat Slots Evolved 2 | . . 2 Power . | . . . Propulsion . | . . . Utility 2 | . . 2 Weapon . | . . . Parts Attached 24 | 6 17 1 Power 3 | 1 2 . Engine 3 | 1 2 . Core . | . . . Reactor . | . . . Propulsion 8 | 2 6 . Treads . | . . . Leg 8 | 2 6 . Wheel . | . . . Hover . | . . . Flight . | . . . Utility 4 | 1 3 . Device 1 | . 1 . Storage 3 | 1 2 . Processor . | . . . Hackware . | . . . Protection . | . . . Artifact . | . . . Weapon 9 | 2 6 1 Energy Gun 5 | . 5 . Energy Cannon . | . . . Ballistic Gun 2 | 2 . . Ballistic Cannon . | . . . Launcher 2 | . 1 1 Special Weapon . | . . . Impact Weapon . | . . . Slashing Weapon . | . . . Piercing Weapon . | . . . Special Melee Weapon . | . . . Unidentified Prototypes . | . . . Parts Lost 8 | . 6 2 Power 1 | . 1 . Propulsion . | . . . Utility 2 | . 1 1 Weapon 5 | . 4 1 Highest Loss Streak 2 | . 2 2 Average Slot Usage (%) 91 | . 92 73 Engine 13 | . 13 11 Leg 27 | . 28 22 Device 2 | . 2 . Storage 20 | . 20 20 Energy Gun 13 | . 13 17 Ballistic Gun 12 | . 13 . Naked Turns . | . . . Heaviest Build 27 | 11 27 27 Greatest Support 20 | 20 20 20 Greatest Overweight (x) 1 | 1 1 1 Average Overweight (x) . | . . 1 Largest Inventory Capacity 12 | 6 12 10 Average Capacity 9 | 5 9 10 Most Carried 10 | 6 10 10 Average Carried 8 | 4 9 10 Final Capacity 10 | . . 10 Final Carried 10 | . . 10 Class Distribution -------------------- 57% | Mutant 42% | Scavenger-Mutant Dominant Class ---------------- Mutant | -10/Materials Scavenger-Mutant | -9/Materials Resources | -11 -10 -9 ----------- Run | Scr Mat Mat Matter Collected 534 | 168 366 . Remotely . | . . . Salvage Created 618 | . 561 57 Parts 51 | . 47 4 Haulers Intercepted . | . . . Recyclers Shooed . | . . . Parts Field Recycled . | . . . Retrieved Matter . | . . . Parts Self-Destructed . | . . . Prevented . | . . . Kills | -11 -10 -9 ------- Run | Scr Mat Mat Combat Hostiles Destroyed 16 | . 13 3 Guns 11 | . 11 . AOE 5 | . 2 3 Classes Destroyed 5 | . 4 1 Worker 1 | . 1 . Watcher 3 | . 3 . Swarmer 3 | . 3 . Grunt 12 | . 10 2 Duelist 1 | . . 1 Best Kill Streak 4 | . 4 3 Combat Bots Only 4 | . 4 3 Max Kills in Single Turn 1 | . 1 1 Gunslinging . | . . . Exploded 1 | . 1 1 Melee . | . . . Uniques/NPCs Destroyed . | . . . Combat | -11 -10 -9 -------- Run | Scr Mat Mat Damage Taken 1008 | . 784 224 Core 175 | . 126 49 Absorbed by Shields . | . . . Core Remaining (%) 74 | 100 49 . Volleys Fired 66 | 1 59 6 Largest 2 | 2 2 2 Hottest 90 | 40 90 90 Shots Fired 121 | 2 110 9 Gun 114 | 2 108 4 Cannon . | . . . Launcher 7 | . 2 5 Special . | . . . Kinetic 64 | 2 62 . Thermal 38 | . 35 3 Explosive 7 | . 2 5 Electromagnetic 12 | . 11 1 Robot Hit Streak 12 | . 12 5 Robot Miss Streak 5 | 2 5 1 Penetration Max . | . . . Secondary Targets . | . . . Shots Hit Robots 76 | . 71 5 Core Hits 47 | . 38 9 Critical Hits . | . . . Critical Kills . | . . . Critical Parts Destroyed . | . . . Melee Attacks . | . . . Impact . | . . . Slashing . | . . . Piercing . | . . . Sneak Attacks . | . . . Combat Hostiles . | . . . Follow-up Attacks . | . . . Damage Inflicted 1116 | . 765 351 Guns 678 | . 653 25 Cannons . | . . . Explosions 438 | . 112 326 Melee . | . . . Ramming . | . . . Kinetic 356 | . 356 . Thermal 265 | . 240 25 Explosive 438 | . 112 326 Electromagnetic 57 | . 57 . Impact . | . . . Slashing . | . . . Piercing . | . . . Highest Corruption 1 | . 1 . Average Corruption 1 | . 1 . Corruption Purged . | . . . Overload Shots . | . . . Overflow Damage 4 | . . 4 Projectiles . | . . . Explosions 4 | . . 4 Melee . | . . . Knockbacks . | . . . Impact . | . . . Kinetic . | . . . Secondary . | . . . Self-Inflicted Damage 19 | . . 19 Shots 1 | . . 1 Rammed . | . . . Targets Rammed . | . . . Kicked . | . . . Crushed . | . . . Highest Temperature 159 | . 159 33 Average Temperature 46 | . 49 14 Received Heat Transfer 435 | . 357 78 Siege Activations . | . . . Robots Corrupted . | . . . Combat Hostiles . | . . . Parts Fried . | . . . Impact Corruptions . | . . . Robots Melted . | . . . Combat Hostiles . | . . . Parts Melted 1 | . 1 . Heat Transferred 706 | . 632 74 Parts Sabotaged . | . . . Parts Stolen . | . . . Parts Stripped . | . . . Power Chain Reactions . | . . . Missiles Intercepted . | . . . Alert | -11 -10 -9 ------- Run | Scr Mat Mat Peak Influence 299 | . 299 137 Average Influence 103 | . 112 84 Maximum Alert Level 1 | . 1 . Low Security (%) 87 | . . . Level 1 12 | . . . Level 2 . | . . . Level 3 . | . . . Level 4 . | . . . Level 5 . | . . . High Security . | . . . Max Security . | . . . Squads Dispatched 4 | . 4 . Investigation 1 | . 1 . Extermination . | . . . Reinforcement 3 | . 3 . Assault . | . . . Garrison . | . . . Intercept . | . . . Construction Impeded . | . . . Haulers Reinforced . | . . . Stealth | -11 -10 -9 --------- Run | Scr Mat Mat Distress Signals 2 | . 2 . Communications Jammed . | . . . Distress Signals . | . . . Times Spotted 38 | . 33 5 Peak Tracking Total 7 | . 7 5 Tactical Retreats 3 | . 3 . Traps | -11 -10 -9 ------- Run | Scr Mat Mat Traps Triggered 2 | . 2 . Indirectly . | . . . Trap Hack Attempts . | . . . Triggered . | . . . Disarmed . | . . . Reprogrammed . | . . . Reused . | . . . Traps Extracted . | . . . Installed . | . . . Triggered . | . . . Machines | -11 -10 -9 ---------- Run | Scr Mat Mat Machines Disabled 1 | . 1 . Max in Single Turn 1 | . 1 . Machines Sabotaged . | . . . Garrisons Compromised . | . . . Overloaded Fab Kills . | . . . Fab Network Shutdowns . | . . . Hacking | -11 -10 -9 --------- Run | Scr Mat Mat Machines Accessed 3 | . 3 . Terminals 1 | . 1 . Fabricators . | . . . Repair Stations . | . . . Recycling Units 2 | . 2 . Scanalyzers . | . . . Garrison Access . | . . . Total Hacks 4 | . 4 . Successful 4 | . 4 . Failed . | . . . Catastrophic . | . . . Database Lockouts . | . . . Manual 1 | . 1 . Terminals 1 | . 1 . Fabricators . | . . . Repair Stations . | . . . Recycling Units 3 | . 3 . Scanalyzers . | . . . Garrison Access . | . . . Terminal Hacks . | . . . Fabricator Hacks . | . . . Repair Station Hacks . | . . . Recycling Unit Hacks 3 | . 3 . Retrieve Matter 1 | . 1 . Retrieve Components 2 | . 2 . Scanalyzer . | . . . Garrison Access Hacks . | . . . Unauthorized Hacks 2 | . 2 . Terminals 1 | . 1 . Botnet 1 | . 1 . Fabricators . | . . . Repair Stations . | . . . Recycling Units . | . . . Scanalyzers . | . . . Garrison Access . | . . . Data Cores Recovered . | . . . Used . | . . . Hacking Detections 1 | . 1 . Full Trace Events . | . . . Feedback Events . | . . . Feedback Blocked . | . . . Robot Schematics Acquired . | . . . Robots Built . | . . . Matter . | . . . Time . | . . . Total Robot Build Rating . | . . . Part Schematics Acquired . | . . . Parts Built . | . . . Matter . | . . . Time . | . . . Total Part Build Rating . | . . . Parts Repaired . | . . . Time . | . . . Parts Recycled . | . . . Recycled Matter . | . . . Retrieved Matter . | . . . Retrieved Components 11 | . 11 . Parts Scanalyzed . | . . . Part Schematics Acquired . | . . . Parts Damaged . | . . . Bothacking | -11 -10 -9 ------------ Run | Scr Mat Mat Used RIF Installer . | . . . Robots Hacked . | . . . Non-combat . | . . . Combat . | . . . Robot Hacks Applied . | . . . Relay Couplers Released . | . . . Robots Rewired . | . . . Allies Hacked . | . . . Hacks Repelled . | . . . Allies | -11 -10 -9 -------- Run | Scr Mat Mat Total Allies . | . . . Largest Group . | . . . Highest-Rated Group . | . . . Highest-Rated Ally . | . . . Total Orders . | . . . Ally Attacks . | . . . Total Damage . | . . . Kills . | . . . Allies Corrupted . | . . . Allies Melted . | . . . Intel | -11 -10 -9 ------- Run | Scr Mat Mat Robot Analysis Total . | . . . Derelict Logs Recovered . | . . . Drone Launches . | . . . Drone Recoveries . | . . . Exploration | -11 -10 -9 ------------- Run | Scr Mat Mat Turns Passed 1141 | 71 1002 68 Spaces Moved 542 | 48 460 34 Core 11 | 11 . . Treads . | . . . Legs 531 | 37 460 34 Wheels . | . . . Hover . | . . . Flight . | . . . Fastest Speed 50 | 50 120 150 Average Speed 145 | 112 149 150 Slowest Speed 150 | 150 150 150 Overloaded Moves . | . . . Propulsion Burnouts . | . . . Robots Hopped . | . . . Cave-ins Triggered . | . . . Exploration Rate (%) 26 | 4 69 6 Regions Visited 2 Branch Regions . Pre-discovered Areas . | . . . Known Exits Taken . | . . . Unknown Exits Taken 2 | 1 1 . Scrap Searched . | . . . Spaces Dug . | . . . Terrain Destroyed 26 | . 6 20 Melee . | . . . Projectile . | . . . AOE 26 | . 6 20 Actions | -11 -10 -9 --------- Run | Scr Mat Mat Total 782 | 60 681 41 Wait 123 | . 123 . Move 540 | 47 459 34 Hop . | . . . Pick Up 16 | 6 10 . Fast Attach 11 | 6 5 . Attach 4 | . 4 . Detach 2 | . 2 . Swap 9 | . 8 1 Drop 11 | . 11 . Fire 66 | 1 59 6 Melee . | . . . Ram . | . . . Kick . | . . . Crush . | . . . Escape Stasis . | . . . Rewire . | . . . Trap . | . . . Miscellaneous . | . . . Route ------- -11/Scrapyard -10/Materials (discovered 2 exits: [*Mat] / [*Min]) -9/Materials History --------- Turn | Location | Event 11 | -11/Scrapyard | Discovered new exit (range 16) 72 | -11/Scrapyard | Entered Materials 312 | -10/Materials | Build established: Mutant 829 | -10/Materials | Discovered new exit (range 6) 972 | -10/Materials | Build established: Scavenger-Mutant 1021 | -10/Materials | Core integrity fell below 50% 1049 | -10/Materials | Discovered new exit (range 16) 1074 | -10/Materials | Entered another Materials area 1074 | -9/Materials | Evolved 2 slots: Utility x2 1142 | -9/Materials | Self-destructed Last Messages --------------- 01028_ Connecting with Recycling Unit... >>Retrieve(Components) Retrieving 2 components... Lgt. Assault Rifle Com. Wheel 01049_ EXIT=FOUND 01059_ U-05 Engineer lays Concrete. 01061_ U-05 Engineer repairs door. 01066_ U-05 Engineer lays Concrete. PARAMETERS=UTILITY_2 LOCATION=UNKNOWN GOAL=ESCAPE 01127_ G-34 Mercenary destroyed. 01135_ Med. Laser destroyed. 01136_ L-31 Rogue destroyed. 01138_ The unstable cave ceiling collapses. 01139_ Sml. Matter Pod destroyed. 01140_ The unstable cave ceiling collapses. 01140_ Destroyed Hover Unit. 01140_ G-34 Mercenary destroyed. Map ----- +----------------------------------------------------+ | | | | | | | | | | | | | | | | | ?????????????????????????????????????????????????? | | ?????????????????????????????????????????????????? | | ?????????????????????????????????????????????????? | | ?????????????????????????###########?????????????? | | ?????????????????????????# "T" #?????????????? | | ?????????????????????????# #?????????????? | | ?????????????????????????# #?????????????? | | ?????????????????????????# ##????????????? | | ?????????????????????????# !!! #????????????? | | ?????????????????????????# ![! !#?????????????? | | ?????????????????????????# !! #?????????????? | | ?????????????????????????# #?????????????? | | ?????????????????????????#####+#####?????????????? | | ????????????????#####???##### #????????????????? | | ?????????######## ###### # #####??????????? | | ?????????# # Y +??????????? | | ?????????# """ # ##??????????? | | ?????????# """ + @% #??????????? | | ?????????# """ # = #??????????? | | ?????????# # w= #???????????? | | ?????????# # ######## * #??????????? | | ?????????######## #???????## #??????????? | | ????????????????# #?????????# ##??????????? | | ????????????????# #??????????? #??????????? | | ????????????????+ +???????????? ?????????? | | ????????????????# #????????????? ?????????? | | ????????????????# #?????????????? ?????????? | | ????????????????# #?????????????? ???????????? | | ????????????????# #????????????????????????????? | | ????????????????# #????????????????????????????? | | ????????????????# #????????????????????????????? | | ????????????????# +????????????????????????????? | | ????????????????# #????????????????????????????? | | ????????????????? ?????????????????????????????? | | ????????????????? ?????????????????????????????? | | ????????????????? ?????????????????????????????? | | ?????????????????????????????????????????????????? | | ?????????????????????????????????????????????????? | | ?????????????????????????????????????????????????? | | ?????????????????????????????????????????????????? | | ?????????????????????????????????????????????????? | | ?????????????????????????????????????????????????? | +----------------------------------------------------+ Best States ------------- Heat Dissipation 35 Energy Generation 10 Energy Capacity 250 Matter Stores 350 Matter Capacity 350 Sight Range 16 Terrain Scan Density 10 Evasion (%) 40 Item Schematics ----------------- None Robot Schematics ------------------ None Fabricated ------------ Nothing Alien Tech Used ----------------- None Achievements -------------- Hunted True Hacker Challenges ------------ None Game ------ Seed SystemSwarmNanoactuators Manual? 0 Play Time 00:13:31 Cumulative 14.1 hours Start 2019.10.27 @ 17:11:28 End 2019.10.27 @ 20:24:48 Sessions 2 Manual Loads 0 Difficulty Rogue Special Mode None Game No. 23 Rogue 23 Adventurer 0 Explorer 0 Win Type - Total 0 Types 0/0/0/0/0/0/0 Lore% 5 Gallery% 23 Achievement% 17 Wizard Run 0 Options --------- ASCII 0 Keyboard 1 Movement Numpad Keybinds 0 Fullscreen 1 Font 18/SmallcapsGlow Map View 76x50 Tactical HUD 1 Map Filters NONE Filters NONE Steam 1 RUN: 64f5c8fd-89d7-412e-9448-4c169d8cdc38